[Event "Titled Tuesday Blitz August 31 2021"]
[White "Maly, Alexey"]
[Black "Xiong, Jeffery"]
[WhiteFideId "14103184"]
[BlackFideId "2047640"]
[WhiteElo "2250"]
[BlackElo "2724"]
[Result "0-1"]
[Round "04"]
[TimeControl "180+1"]
[Date "2021.08.31"]
[WhiteClock "0:00:03"]
[BlackClock "0:00:18"]

1. d4 {[%clk 0:03:00]}  d5 {[%clk 0:03:00]} 2. c4 {[%clk 0:03:01]}  e6 {[%clk 0:03:00]} 3. Nf3 {[%clk 0:03:01]}  Nf6 {[%clk 0:03:00]} 4. e3 {[%clk 0:03:01]}  dxc4 {[%clk 0:02:56]} 5. Bxc4 {[%clk 0:03:01]}  c5 {[%clk 0:02:57]} 6. O-O {[%clk 0:03:00]}  a6 {[%clk 0:02:58]} 7. b3 {[%clk 0:03:00]}  cxd4 {[%clk 0:02:53]} 8. Nxd4 {[%clk 0:03:00]}  Bd6 {[%clk 0:02:53]} 9. Bb2 {[%clk 0:02:59]}  O-O {[%clk 0:02:54]} 10. Nd2 {[%clk 0:02:59]}  e5 {[%clk 0:02:54]} 11. N4f3 {[%clk 0:02:53]}  Nc6 {[%clk 0:02:55]} 12. h3 {[%clk 0:02:51]}  Bf5 {[%clk 0:02:35]} 13. Rc1 {[%clk 0:02:44]}  h6 {[%clk 0:02:34]} 14. Qe2 {[%clk 0:02:03]}  Rc8 {[%clk 0:02:34]} 15. Rfd1 {[%clk 0:02:03]}  Qe7 {[%clk 0:02:32]} 16. Nh4 {[%clk 0:01:57]}  Bh7 {[%clk 0:02:31]} 17. Qf3 {[%clk 0:01:54]}  Nb4 {[%clk 0:02:10]} 18. Nf5 {[%clk 0:01:39]}  Bxf5 {[%clk 0:01:27]} 19. Qxf5 {[%clk 0:01:40]}  Rcd8 {[%clk 0:01:28]} 20. a3 {[%clk 0:01:22]}  Nc6 {[%clk 0:01:28]} 21. Nf3 {[%clk 0:01:20]}  Bxa3 {[%clk 0:01:23]} 22. Bxa3 {[%clk 0:01:13]}  Qxa3 {[%clk 0:01:24]} 23. Nxe5 {[%clk 0:01:07]}  Nxe5 {[%clk 0:01:25]} 24. Qxe5 {[%clk 0:01:07]}  b5 {[%clk 0:01:26]} 25. Bf1 {[%clk 0:00:22]}  Qxb3 {[%clk 0:01:26]} 26. Rxd8 {[%clk 0:00:20]}  Rxd8 {[%clk 0:01:26]} 27. Qc7 {[%clk 0:00:15]}  Qd5 {[%clk 0:00:57]} 28. Qa7 {[%clk 0:00:14]}  Ra8 {[%clk 0:00:56]} 29. Qb6 {[%clk 0:00:13]}  Ne4 {[%clk 0:00:52]} 30. f3 {[%clk 0:00:10]}  Qd2 {[%clk 0:00:51]} 31. Ra1 {[%clk 0:00:05]}  Qc3 {[%clk 0:00:41]} 32. Rxa6 {[%clk 0:00:02]}  Rxa6 {[%clk 0:00:40]} 33. Qxa6 {[%clk 0:00:03]}  Qxe3+ {[%clk 0:00:40]} 34. Kh2 {[%clk 0:00:03]}  Qf4+ {[%clk 0:00:32]} 35. Kg1 {[%clk 0:00:04]}  Nd6 {[%clk 0:00:18]} 36. Qa8+ {[%clk 0:00:03]}  Kh7 {[%clk 0:00:18]} 37. Qd5 {[%clk 0:00:04]}  b4 {[%clk 0:00:17]} 38. Bd3+ {[%clk 0:00:03]}  g6 {[%clk 0:00:17]} 39. Kh1 {[%clk 0:00:03]}  Kg7 {[%clk 0:00:17]} 40. Qb3 {[%clk 0:00:03]}  Qc1+ {[%clk 0:00:17]} 41. Kh2 {[%clk 0:00:03]}  Qc3 {[%clk 0:00:18]} 42. Qb1 {[%clk 0:00:03]}  b3 {[%clk 0:00:18]} 43. f4 {[%clk 0:00:03]}  b2 {[%clk 0:00:18]} 44. f5 {[%clk 0:00:03]}  gxf5 {[%clk 0:00:18]} 45. Qc1 {[%clk 0:00:03]}  bxc1=Q {[%clk 0:00:18]} 0-1


[Site "https://www.chess.com"]

[Event "Titled Tuesday Blitz August 31 2021"]
[White "Mekhitarian, Krikor Sevag"]
[Black "Nefedov, Sergey"]
[WhiteFideId "2107660"]
[BlackFideId "24113417"]
[WhiteElo "2598"]
[BlackElo "2380"]
[Result "1-0"]
[Round "04"]
[TimeControl "180+1"]
[Date "2021.08.31"]
[WhiteClock "0:00:05"]
[BlackClock "0:00:05"]

1. e4 {[%clk 0:03:00]}  d5 {[%clk 0:02:59]} 2. exd5 {[%clk 0:03:00]}  Qxd5 {[%clk 0:03:00]} 3. Nc3 {[%clk 0:02:59]}  Qd8 {[%clk 0:03:00]} 4. d4 {[%clk 0:02:57]}  Nf6 {[%clk 0:03:00]} 5. Nf3 {[%clk 0:02:57]}  g6 {[%clk 0:03:00]} 6. Bg5 {[%clk 0:02:52]}  Bg7 {[%clk 0:02:59]} 7. Bc4 {[%clk 0:02:46]}  O-O {[%clk 0:02:58]} 8. Qd2 {[%clk 0:02:45]}  a6 {[%clk 0:02:56]} 9. Bh6 {[%clk 0:02:42]}  b5 {[%clk 0:02:56]} 10. Bb3 {[%clk 0:02:41]}  Bb7 {[%clk 0:02:55]} 11. O-O-O {[%clk 0:02:40]}  Bxf3 {[%clk 0:02:46]} 12. gxf3 {[%clk 0:02:38]}  Nbd7 {[%clk 0:02:47]} 13. h4 {[%clk 0:02:18]}  Nh5 {[%clk 0:02:40]} 14. Rdg1 {[%clk 0:02:11]}  Ndf6 {[%clk 0:02:36]} 15. Bxg7 {[%clk 0:01:54]}  Kxg7 {[%clk 0:02:35]} 16. Ne4 {[%clk 0:01:54]}  Qd7 {[%clk 0:02:03]} 17. Nc5 {[%clk 0:01:38]}  Qf5 {[%clk 0:02:01]} 18. Qe3 {[%clk 0:01:34]}  a5 {[%clk 0:01:54]} 19. c3 {[%clk 0:01:33]}  a4 {[%clk 0:01:43]} 20. Bc2 {[%clk 0:01:32]}  Qf4 {[%clk 0:01:44]} 21. Nd3 {[%clk 0:01:26]}  Qd6 {[%clk 0:01:39]} 22. a3 {[%clk 0:01:24]}  Nd5 {[%clk 0:01:27]} 23. Qg5 {[%clk 0:01:18]}  Ndf4 {[%clk 0:01:26]} 24. Kb1 {[%clk 0:01:10]}  Qf6 {[%clk 0:01:20]} 25. Nc5 {[%clk 0:01:00]}  Qxg5 {[%clk 0:01:16]} 26. hxg5 {[%clk 0:01:01]}  Rfe8 {[%clk 0:01:11]} 27. Re1 {[%clk 0:01:00]}  Rad8 {[%clk 0:01:07]} 28. Re4 {[%clk 0:00:49]}  c6 {[%clk 0:01:01]} 29. Rh4 {[%clk 0:00:44]}  Nd5 {[%clk 0:01:00]} 30. Nd3 {[%clk 0:00:41]}  h6 {[%clk 0:00:53]} 31. f4 {[%clk 0:00:34]}  e6 {[%clk 0:00:50]} 32. Bd1 {[%clk 0:00:32]}  hxg5 {[%clk 0:00:43]} 33. fxg5 {[%clk 0:00:33]}  Rh8 {[%clk 0:00:43]} 34. Bxh5 {[%clk 0:00:33]}  Rxh5 {[%clk 0:00:43]} 35. Rxh5 {[%clk 0:00:33]}  gxh5 {[%clk 0:00:44]} 36. Rh4 {[%clk 0:00:33]}  Kg6 {[%clk 0:00:44]} 37. f4 {[%clk 0:00:31]}  Kf5 {[%clk 0:00:37]} 38. Rxh5 {[%clk 0:00:26]}  Ke4 {[%clk 0:00:25]} 39. Ne5 {[%clk 0:00:24]}  Nxf4 {[%clk 0:00:24]} 40. Rh7 {[%clk 0:00:24]}  Rg8 {[%clk 0:00:23]} 41. Nxf7 {[%clk 0:00:23]}  Kd5 {[%clk 0:00:16]} 42. Ka2 {[%clk 0:00:19]}  c5 {[%clk 0:00:16]} 43. dxc5 {[%clk 0:00:19]}  Kxc5 {[%clk 0:00:17]} 44. Rh4 {[%clk 0:00:16]}  Nd5 {[%clk 0:00:12]} 45. Re4 {[%clk 0:00:15]}  Rg7 {[%clk 0:00:12]} 46. Nd8 {[%clk 0:00:15]}  Nc7 {[%clk 0:00:08]} 47. Rxe6 {[%clk 0:00:10]}  Rg8 {[%clk 0:00:05]} 48. Rc6+ {[%clk 0:00:09]}  Kd5 {[%clk 0:00:04]} 49. Rxc7 {[%clk 0:00:09]}  Rxd8 {[%clk 0:00:04]} 50. g6 {[%clk 0:00:09]}  Kd6 {[%clk 0:00:02]} 51. Rb7 {[%clk 0:00:09]}  Kc6 {[%clk 0:00:02]} 52. Rf7 {[%clk 0:00:09]}  Rg8 {[%clk 0:00:02]} 53. g7 {[%clk 0:00:09]}  Kd6 {[%clk 0:00:02]} 54. Kb1 {[%clk 0:00:10]}  Kc6 {[%clk 0:00:01]} 55. Kc2 {[%clk 0:00:10]}  Kd6 {[%clk 0:00:02]} 56. Kd3 {[%clk 0:00:09]}  Ke6 {[%clk 0:00:03]} 57. Rb7 {[%clk 0:00:08]}  Kd6 {[%clk 0:00:04]} 58. Rxb5 {[%clk 0:00:08]}  Rxg7 {[%clk 0:00:04]} 59. Rb4 {[%clk 0:00:06]}  Ra7 {[%clk 0:00:04]} 60. c4 {[%clk 0:00:04]}  Kc5 {[%clk 0:00:05]} 61. Rb5+ {[%clk 0:00:04]}  Kc6 {[%clk 0:00:06]} 62. Kc3 {[%clk 0:00:05]}  Ra8 {[%clk 0:00:05]} 63. Kb4 {[%clk 0:00:05]}  Ra7 {[%clk 0:00:06]} 64. Rc5+ {[%clk 0:00:05]}  Kb6 {[%clk 0:00:05]} 65. Rh5 {[%clk 0:00:05]}  Kc6 {[%clk 0:00:05]} 66. Rh6+ {[%clk 0:00:05]}  Kb7 {[%clk 0:00:05]} 67. Kb5 {[%clk 0:00:05]} 1-0


[Site "https://www.chess.com"]

[Event "Titled Tuesday Blitz August 31 2021"]
[White "Milchev, Nikolay"]
[Black "Karthikeyan, Murali"]
[WhiteFideId "2906090"]
[BlackFideId "5074452"]
[WhiteElo "2449"]
[BlackElo "2564"]
[Result "0-1"]
[Round "04"]
[TimeControl "180+1"]
[Date "2021.08.31"]
[WhiteClock "0:00:46"]
[BlackClock "0:00:17"]

1. Nf3 {[%clk 0:03:00]}  Nf6 {[%clk 0:02:51]} 2. c4 {[%clk 0:03:00]}  c5 {[%clk 0:02:50]} 3. Nc3 {[%clk 0:03:00]}  Nc6 {[%clk 0:02:49]} 4. g3 {[%clk 0:03:01]}  g6 {[%clk 0:02:49]} 5. Bg2 {[%clk 0:03:02]}  Bg7 {[%clk 0:02:49]} 6. O-O {[%clk 0:03:03]}  h5 {[%clk 0:02:49]} 7. h4 {[%clk 0:03:01]}  O-O {[%clk 0:02:45]} 8. b3 {[%clk 0:03:01]}  d5 {[%clk 0:02:44]} 9. cxd5 {[%clk 0:03:01]}  Nxd5 {[%clk 0:02:45]} 10. Bb2 {[%clk 0:03:02]}  Nc7 {[%clk 0:02:38]} 11. Rc1 {[%clk 0:03:01]}  b6 {[%clk 0:02:36]} 12. Qc2 {[%clk 0:02:58]}  Bf5 {[%clk 0:02:32]} 13. d3 {[%clk 0:02:57]}  Rc8 {[%clk 0:02:31]} 14. Qb1 {[%clk 0:02:57]}  Ne6 {[%clk 0:02:26]} 15. Rfe1 {[%clk 0:02:43]}  a6 {[%clk 0:02:23]} 16. Qa1 {[%clk 0:02:43]}  Bh6 {[%clk 0:01:58]} 17. Rcd1 {[%clk 0:02:33]}  Ned4 {[%clk 0:01:55]} 18. Nxd4 {[%clk 0:02:32]}  cxd4 {[%clk 0:01:56]} 19. Ne4 {[%clk 0:02:24]}  Qd7 {[%clk 0:01:55]} 20. Bc1 {[%clk 0:02:18]}  Bg7 {[%clk 0:01:55]} 21. Ba3 {[%clk 0:02:15]}  Na7 {[%clk 0:01:36]} 22. Bb2 {[%clk 0:02:09]}  Nb5 {[%clk 0:01:35]} 23. Rc1 {[%clk 0:02:07]}  Bxe4 {[%clk 0:01:25]} 24. Bxe4 {[%clk 0:02:06]}  Nc3 {[%clk 0:01:25]} 25. Bf3 {[%clk 0:02:04]}  b5 {[%clk 0:01:18]} 26. b4 {[%clk 0:01:59]}  Qd6 {[%clk 0:01:17]} 27. a3 {[%clk 0:01:58]}  Rc7 {[%clk 0:01:15]} 28. e3 {[%clk 0:01:52]}  Rfc8 {[%clk 0:01:11]} 29. exd4 {[%clk 0:01:47]}  Bxd4 {[%clk 0:01:10]} 30. Kg2 {[%clk 0:01:46]}  Qf6 {[%clk 0:01:10]} 31. Rc2 {[%clk 0:01:34]}  Qf5 {[%clk 0:00:24]} 32. Be4 {[%clk 0:01:17]}  Nxe4 {[%clk 0:00:21]} 33. dxe4 {[%clk 0:01:17]}  Rxc2 {[%clk 0:00:21]} 34. Bxd4 {[%clk 0:01:11]}  Qe6 {[%clk 0:00:15]} 35. Bc5 {[%clk 0:01:11]}  Rd8 {[%clk 0:00:14]} 36. e5 {[%clk 0:00:51]}  Rd3 {[%clk 0:00:13]} 37. Re3 {[%clk 0:00:48]}  Qd5+ {[%clk 0:00:13]} 38. Kg1 {[%clk 0:00:46]}  Rd1+ {[%clk 0:00:13]} 39. Re1 {[%clk 0:00:46]}  Rxa1 {[%clk 0:00:12]} 40. Rxa1 {[%clk 0:00:47]}  Rxc5 {[%clk 0:00:13]} 41. bxc5 {[%clk 0:00:47]}  Qxc5 {[%clk 0:00:14]} 42. Re1 {[%clk 0:00:46]}  Qxa3 {[%clk 0:00:14]} 43. e6 {[%clk 0:00:47]}  fxe6 {[%clk 0:00:14]} 44. Rxe6 {[%clk 0:00:48]}  Kf7 {[%clk 0:00:15]} 45. Rb6 {[%clk 0:00:47]}  b4 {[%clk 0:00:14]} 46. Kg2 {[%clk 0:00:47]}  a5 {[%clk 0:00:14]} 47. Rb7 {[%clk 0:00:47]}  b3 {[%clk 0:00:15]} 48. Kf3 {[%clk 0:00:47]}  b2+ {[%clk 0:00:15]} 49. Kf4 {[%clk 0:00:48]}  Qb4+ {[%clk 0:00:16]} 50. Rxb4 {[%clk 0:00:47]}  axb4 {[%clk 0:00:17]} 51. Kg5 {[%clk 0:00:48]}  b1=Q {[%clk 0:00:17]} 52. Kh6 {[%clk 0:00:47]}  Qf5 {[%clk 0:00:16]} 53. f4 {[%clk 0:00:47]}  g5 {[%clk 0:00:17]} 54. Kxh5 {[%clk 0:00:46]}  g4+ {[%clk 0:00:17]} 0-1


[Site "https://www.chess.com"]

[Event "Titled Tuesday Blitz August 31 2021"]
[White "Mirzoev, Azer"]
[Black "Khabinets, Ivan"]
[WhiteFideId "13400304"]
[BlackFideId "14115980"]
[WhiteElo "2525"]
[BlackElo "2114"]
[Result "0-1"]
[Round "04"]
[TimeControl "180+1"]
[Date "2021.08.31"]
[WhiteClock "0:00:04"]
[BlackClock "0:00:26"]

1. d4 {[%clk 0:03:00]}  Nf6 {[%clk 0:02:59]} 2. c4 {[%clk 0:03:00]}  e6 {[%clk 0:03:00]} 3. Nc3 {[%clk 0:03:00]}  Bb4 {[%clk 0:03:00]} 4. Bd2 {[%clk 0:03:00]}  c5 {[%clk 0:02:59]} 5. a3 {[%clk 0:02:58]}  Bxc3 {[%clk 0:02:57]} 6. Bxc3 {[%clk 0:02:59]}  Ne4 {[%clk 0:02:57]} 7. Rc1 {[%clk 0:02:58]}  Nxc3 {[%clk 0:02:57]} 8. Rxc3 {[%clk 0:02:58]}  d6 {[%clk 0:02:58]} 9. dxc5 {[%clk 0:02:57]}  dxc5 {[%clk 0:02:58]} 10. Qxd8+ {[%clk 0:02:57]}  Kxd8 {[%clk 0:02:58]} 11. g3 {[%clk 0:02:57]}  Bd7 {[%clk 0:02:49]} 12. Bg2 {[%clk 0:02:58]}  Bc6 {[%clk 0:02:49]} 13. Nf3 {[%clk 0:02:51]}  Nd7 {[%clk 0:02:47]} 14. O-O {[%clk 0:02:45]}  Ke7 {[%clk 0:02:46]} 15. b4 {[%clk 0:02:45]}  Rad8 {[%clk 0:02:34]} 16. b5 {[%clk 0:02:42]}  Bxf3 {[%clk 0:02:33]} 17. Bxf3 {[%clk 0:02:42]}  b6 {[%clk 0:02:33]} 18. e3 {[%clk 0:02:28]}  Ne5 {[%clk 0:02:31]} 19. Be2 {[%clk 0:02:09]}  Rd2 {[%clk 0:02:31]} 20. Re1 {[%clk 0:02:09]}  h5 {[%clk 0:02:26]} 21. h3 {[%clk 0:02:08]}  h4 {[%clk 0:02:02]} 22. g4 {[%clk 0:02:07]}  g5 {[%clk 0:01:53]} 23. Kf1 {[%clk 0:02:06]}  Rhd8 {[%clk 0:01:52]} 24. f4 {[%clk 0:01:46]}  gxf4 {[%clk 0:01:27]} 25. exf4 {[%clk 0:01:46]}  Ng6 {[%clk 0:01:28]} 26. f5 {[%clk 0:01:45]}  Nf4 {[%clk 0:01:23]} 27. fxe6 {[%clk 0:01:43]}  fxe6 {[%clk 0:01:21]} 28. Re3 {[%clk 0:01:38]}  Rf8 {[%clk 0:01:06]} 29. Bf3 {[%clk 0:01:30]}  Nxh3 {[%clk 0:00:51]} 30. Rxe6+ {[%clk 0:01:29]}  Kd8 {[%clk 0:00:51]} 31. R1e2 {[%clk 0:00:16]}  Rxf3+ {[%clk 0:00:49]} 32. Kg2 {[%clk 0:00:15]}  Rxe2+ {[%clk 0:00:32]} 33. Rxe2 {[%clk 0:00:14]}  Rg3+ {[%clk 0:00:32]} 34. Kh2 {[%clk 0:00:14]}  Nf4 {[%clk 0:00:32]} 35. Rd2+ {[%clk 0:00:10]}  Kc7 {[%clk 0:00:33]} 36. a4 {[%clk 0:00:06]}  Rxg4 {[%clk 0:00:33]} 37. Rf2 {[%clk 0:00:06]}  h3 {[%clk 0:00:33]} 38. Rf3 {[%clk 0:00:06]}  Kd6 {[%clk 0:00:31]} 39. Re3 {[%clk 0:00:05]}  Rg2+ {[%clk 0:00:26]} 40. Kh1 {[%clk 0:00:04]}  Re2 {[%clk 0:00:26]} 0-1


[Site "https://www.chess.com"]

[Event "Titled Tuesday Blitz August 31 2021"]
[White "Molina, Roberto Junio Brito"]
[Black "Jakubowski, Krzysztof"]
[WhiteFideId "2109450"]
[BlackFideId "1112848"]
[WhiteElo "2402"]
[BlackElo "2414"]
[Result "1/2-1/2"]
[Round "04"]
[TimeControl "180+1"]
[Date "2021.08.31"]
[WhiteClock "0:00:10"]
[BlackClock "0:00:01"]

1. d4 {[%clk 0:03:00]}  Nf6 {[%clk 0:02:58]} 2. c4 {[%clk 0:03:01]}  e6 {[%clk 0:02:57]} 3. Nf3 {[%clk 0:03:00]}  Bb4+ {[%clk 0:02:57]} 4. Bd2 {[%clk 0:02:59]}  a5 {[%clk 0:02:56]} 5. g3 {[%clk 0:02:59]}  d6 {[%clk 0:02:56]} 6. Bg2 {[%clk 0:02:59]}  Nbd7 {[%clk 0:02:56]} 7. O-O {[%clk 0:02:59]}  e5 {[%clk 0:02:56]} 8. Bg5 {[%clk 0:02:55]}  exd4 {[%clk 0:02:53]} 9. Nxd4 {[%clk 0:02:55]}  h6 {[%clk 0:02:46]} 10. Bf4 {[%clk 0:02:53]}  O-O {[%clk 0:02:44]} 11. Qc2 {[%clk 0:02:51]}  Re8 {[%clk 0:02:28]} 12. Nc3 {[%clk 0:02:44]}  c6 {[%clk 0:02:23]} 13. Rad1 {[%clk 0:02:38]}  Ne5 {[%clk 0:02:20]} 14. b3 {[%clk 0:01:49]}  Qe7 {[%clk 0:02:14]} 15. Na4 {[%clk 0:01:28]}  Ng6 {[%clk 0:01:55]} 16. Bd2 {[%clk 0:01:17]}  Qc7 {[%clk 0:01:45]} 17. Nf5 {[%clk 0:00:58]}  Rxe2 {[%clk 0:01:31]} 18. Ne3 {[%clk 0:00:28]}  Ne5 {[%clk 0:01:29]} 19. Kh1 {[%clk 0:00:20]}  Neg4 {[%clk 0:01:21]} 20. Nxg4 {[%clk 0:00:18]}  Nxg4 {[%clk 0:01:21]} 21. Kg1 {[%clk 0:00:18]}  Ne5 {[%clk 0:00:57]} 22. Nc3 {[%clk 0:00:17]}  Bxc3 {[%clk 0:00:53]} 23. Qxc3 {[%clk 0:00:18]}  Bf5 {[%clk 0:00:50]} 24. Bf4 {[%clk 0:00:17]}  Re8 {[%clk 0:00:44]} 25. Rd2 {[%clk 0:00:15]}  Rxd2 {[%clk 0:00:40]} 26. Qxd2 {[%clk 0:00:16]}  Re6 {[%clk 0:00:32]} 27. Rd1 {[%clk 0:00:15]}  g5 {[%clk 0:00:31]} 28. Bxe5 {[%clk 0:00:14]}  dxe5 {[%clk 0:00:30]} 29. Qd8+ {[%clk 0:00:12]}  Qxd8 {[%clk 0:00:29]} 30. Rxd8+ {[%clk 0:00:13]}  Kg7 {[%clk 0:00:28]} 31. Rd7 {[%clk 0:00:13]}  b5 {[%clk 0:00:18]} 32. cxb5 {[%clk 0:00:12]}  cxb5 {[%clk 0:00:18]} 33. Bd5 {[%clk 0:00:13]}  Rf6 {[%clk 0:00:18]} 34. Rb7 {[%clk 0:00:13]}  Bh3 {[%clk 0:00:17]} 35. f3 {[%clk 0:00:12]}  b4 {[%clk 0:00:15]} 36. Kf2 {[%clk 0:00:12]}  g4 {[%clk 0:00:16]} 37. Ke3 {[%clk 0:00:13]}  gxf3 {[%clk 0:00:15]} 38. Bxf3 {[%clk 0:00:13]}  Rd6 {[%clk 0:00:14]} 39. Rb5 {[%clk 0:00:13]}  Kf6 {[%clk 0:00:10]} 40. Rxa5 {[%clk 0:00:13]}  Rd4 {[%clk 0:00:08]} 41. Ra6+ {[%clk 0:00:10]}  Be6 {[%clk 0:00:08]} 42. h4 {[%clk 0:00:10]}  Rd8 {[%clk 0:00:06]} 43. g4 {[%clk 0:00:10]}  Rc8 {[%clk 0:00:05]} 44. Bd5 {[%clk 0:00:07]}  Rc3+ {[%clk 0:00:05]} 45. Ke4 {[%clk 0:00:08]}  Rg3 {[%clk 0:00:05]} 46. Bxe6 {[%clk 0:00:07]}  fxe6 {[%clk 0:00:06]} 47. g5+ {[%clk 0:00:08]}  hxg5 {[%clk 0:00:06]} 48. hxg5+ {[%clk 0:00:09]}  Rxg5 {[%clk 0:00:06]} 49. Kf3 {[%clk 0:00:07]}  Rf5+ {[%clk 0:00:06]} 50. Ke3 {[%clk 0:00:08]}  Rh5 {[%clk 0:00:06]} 51. Ke4 {[%clk 0:00:06]}  Rh4+ {[%clk 0:00:04]} 52. Kd3 {[%clk 0:00:06]}  Kf5 {[%clk 0:00:03]} 53. Rb6 {[%clk 0:00:04]}  Rd4+ {[%clk 0:00:02]} 54. Ke3 {[%clk 0:00:04]}  Re4+ {[%clk 0:00:02]} 55. Kd3 {[%clk 0:00:04]}  Rh4 {[%clk 0:00:03]} 56. Ke3 {[%clk 0:00:05]}  Rh3+ {[%clk 0:00:01]} 57. Ke2 {[%clk 0:00:05]}  Rh2+ {[%clk 0:00:01]} 58. Ke3 {[%clk 0:00:06]}  Rxa2 {[%clk 0:00:02]} 59. Rxb4 {[%clk 0:00:06]}  Rb2 {[%clk 0:00:02]} 60. Rb8 {[%clk 0:00:06]}  Rb1 {[%clk 0:00:02]} 61. Rf8+ {[%clk 0:00:06]}  Kg6 {[%clk 0:00:02]} 62. Ke4 {[%clk 0:00:07]}  Rxb3 {[%clk 0:00:03]} 63. Kxe5 {[%clk 0:00:08]}  Re3+ {[%clk 0:00:03]} 64. Kd4 {[%clk 0:00:08]}  Re1 {[%clk 0:00:03]} 65. Kd3 {[%clk 0:00:08]}  Kg5 {[%clk 0:00:03]} 66. Kd2 {[%clk 0:00:08]}  Re5 {[%clk 0:00:03]} 67. Rf1 {[%clk 0:00:08]}  Kg4 {[%clk 0:00:03]} 68. Kd3 {[%clk 0:00:08]}  Kg3 {[%clk 0:00:01]} 69. Rf6 {[%clk 0:00:08]}  Kg2 {[%clk 0:00:01]} 70. Kd4 {[%clk 0:00:09]}  Re1 {[%clk 0:00:01]} 71. Kd3 {[%clk 0:00:09]}  Re5 {[%clk 0:00:01]} 72. Kd4 {[%clk 0:00:09]}  Re1 {[%clk 0:00:01]} 73. Kd3 {[%clk 0:00:10]}  Re5 {[%clk 0:00:01]} 1/2-1/2


[Site "https://www.chess.com"]

[Event "Titled Tuesday Blitz August 31 2021"]
[White "Mortazavi, Ali"]
[Black "Buscar, Michael"]
[WhiteFideId "401323"]
[BlackFideId "2603616"]
[WhiteElo "2339"]
[BlackElo "2010"]
[Result "0-1"]
[Round "04"]
[TimeControl "180+1"]
[Date "2021.08.31"]
[WhiteClock "0:00:03"]
[BlackClock "0:00:07"]

1. Nf3 {[%clk 0:03:00]}  Nf6 {[%clk 0:02:59]} 2. g3 {[%clk 0:03:00]}  g6 {[%clk 0:02:59]} 3. Bg2 {[%clk 0:03:01]}  Bg7 {[%clk 0:02:59]} 4. O-O {[%clk 0:03:02]}  O-O {[%clk 0:02:59]} 5. d3 {[%clk 0:03:03]}  d6 {[%clk 0:02:59]} 6. e4 {[%clk 0:03:03]}  e5 {[%clk 0:02:59]} 7. Nc3 {[%clk 0:03:02]}  Nc6 {[%clk 0:02:55]} 8. a4 {[%clk 0:03:02]}  a5 {[%clk 0:02:51]} 9. h3 {[%clk 0:03:02]}  h6 {[%clk 0:02:51]} 10. Be3 {[%clk 0:03:02]}  Be6 {[%clk 0:02:51]} 11. d4 {[%clk 0:03:02]}  exd4 {[%clk 0:02:48]} 12. Nxd4 {[%clk 0:03:02]}  Bc4 {[%clk 0:02:44]} 13. Re1 {[%clk 0:03:02]}  Re8 {[%clk 0:02:41]} 14. Qd2 {[%clk 0:02:54]}  Kh7 {[%clk 0:02:35]} 15. b3 {[%clk 0:02:47]}  Ba6 {[%clk 0:02:31]} 16. Rad1 {[%clk 0:02:47]}  Nd7 {[%clk 0:02:24]} 17. Ndb5 {[%clk 0:02:30]}  Nf8 {[%clk 0:01:57]} 18. Nd5 {[%clk 0:02:15]}  Ne6 {[%clk 0:01:50]} 19. f4 {[%clk 0:02:06]}  Ne7 {[%clk 0:01:44]} 20. f5 {[%clk 0:01:52]}  Nxd5 {[%clk 0:01:41]} 21. exd5 {[%clk 0:01:44]}  Nc5 {[%clk 0:01:31]} 22. fxg6+ {[%clk 0:01:37]}  fxg6 {[%clk 0:01:29]} 23. Bd4 {[%clk 0:01:17]}  Bxb5 {[%clk 0:01:15]} 24. axb5 {[%clk 0:01:11]}  Qg5 {[%clk 0:01:14]} 25. Qxg5 {[%clk 0:01:03]}  hxg5 {[%clk 0:01:14]} 26. Bxg7 {[%clk 0:01:03]}  Kxg7 {[%clk 0:01:10]} 27. Bf3 {[%clk 0:00:58]}  b6 {[%clk 0:01:05]} 28. Kg2 {[%clk 0:00:56]}  Kf7 {[%clk 0:01:02]} 29. Rf1 {[%clk 0:00:53]}  Re5 {[%clk 0:00:59]} 30. Bg4+ {[%clk 0:00:47]}  Kg7 {[%clk 0:00:57]} 31. Rf2 {[%clk 0:00:43]}  Rf8 {[%clk 0:00:57]} 32. Bf3 {[%clk 0:00:35]}  Ref5 {[%clk 0:00:51]} 33. Rd4 {[%clk 0:00:35]}  R8f7 {[%clk 0:00:46]} 34. Rf1 {[%clk 0:00:34]}  Nd7 {[%clk 0:00:38]} 35. Be2 {[%clk 0:00:31]}  Ne5 {[%clk 0:00:26]} 36. Rxf5 {[%clk 0:00:23]}  gxf5 {[%clk 0:00:24]} 37. Rd1 {[%clk 0:00:19]}  f4 {[%clk 0:00:22]} 38. gxf4 {[%clk 0:00:19]}  gxf4 {[%clk 0:00:17]} 39. Kf2 {[%clk 0:00:17]}  Kf6 {[%clk 0:00:15]} 40. Bg4 {[%clk 0:00:14]}  Kg5 {[%clk 0:00:13]} 41. Be6 {[%clk 0:00:13]}  Rh7 {[%clk 0:00:13]} 42. Rg1+ {[%clk 0:00:14]}  Kf6 {[%clk 0:00:13]} 43. Rg8 {[%clk 0:00:13]}  Rg7 {[%clk 0:00:10]} 44. Rf8+ {[%clk 0:00:11]}  Kg5 {[%clk 0:00:09]} 45. Rc8 {[%clk 0:00:07]}  Ng6 {[%clk 0:00:09]} 46. Kf3 {[%clk 0:00:04]}  Nh4+ {[%clk 0:00:08]} 47. Kf2 {[%clk 0:00:04]}  Kf6 {[%clk 0:00:08]} 48. Bg4 {[%clk 0:00:04]}  Ke5 {[%clk 0:00:08]} 49. c4 {[%clk 0:00:03]}  Kd4 {[%clk 0:00:07]} 0-1


[Site "https://www.chess.com"]